fUSD/lending_fUSD_20251029
["ID","MTS","AMOUNT","RATE_DAILY","PERIOD"]
[392604141,1761731257742,500.0,0.00037187,120]
[392604142,1761731258680,500.0,0.00037187,120]
[392604143,1761731259245,500.0,0.00037187,120]
[392604144,1761731259656,300.0,0.00037187,120]
[392604145,1761731259984,500.0,0.00037187,120]
[392604146,1761731260429,311.1,0.00037187,120]
[392604147,1761731261181,311.1,0.00037187,120]
[392604149,1761731305242,50000.0,0.00037187,60]
[392604151,1761731311333,50000.0,0.00037187,61]
[392604152,1761731329216,50000.0,0.00037187,62]
[392604153,1761731332545,50000.0,0.00037187,63]
[392604154,1761731335792,50000.0,0.00037187,64]
[392604157,1761731354917,50000.0,0.00037187,65]
[392604160,1761731378262,50000.0,0.00037187,66]
[392604171,1761731432053,-516.0670987,0.00016823,2]
[392604173,1761731432064,-338.45417961,0.00016823,2]
[392604175,1761731432075,-114.28582039,0.00016848,2]
[392604177,1761731432087,-189.47956945,0.00016848,2]
[392604179,1761731432097,-2291.13833745,0.00016873,2]
[392604181,1761731432106,-334.0,0.00017088,2]
[392604183,1761731432116,-300.0,0.00017088,2]
[392604185,1761731432125,-178.0,0.00017088,2]
[392604187,1761731432135,-1200.0,0.00017088,2]
[392604189,1761731432144,-300.0,0.00017088,2]
[392604191,1761731432154,-500.0,0.00017089,2]
[392604193,1761731432163,-500.0,0.00017089,2]
[392604195,1761731432173,-534.55275725,0.00017089,2]
[392604197,1761731432182,-550.0,0.00017089,2]
[392604200,1761731432192,-17685.40575676,0.0001709,2]
[392604527,1761731437548,-250.0,0.00017,2]
[392604528,1761731437558,-2107.35218923,0.0001709,2]
[392604529,1761731437570,-1576.00134486,0.0001709,2]
[392604530,1761731437582,-710.19118339,0.0001709,2]
[392604531,1761731437602,-15032.79493139,0.0001709,2]
[392604532,1761731437611,-308.74624973,0.00017145,2]
[392604639,1761731439647,-191.25375027,0.00017145,2]
[392604640,1761731439657,-1234.59299744,0.000172,2]
[392604641,1761731439668,-503.46395869,0.00017239,2]
[392604642,1761731439677,-243.5892936,0.00017256,2]
[392605127,1761731445695,-501.4174937,0.00017256,2]
[392605128,1761731445707,-331.45000504,0.00017256,2]
[392605129,1761731445719,-1035.81132275,0.00017256,2]
[392605130,1761731445748,-17247.94609112,0.00017256,2]
[392605220,1761731521493,50000.0,0.00037187,67]
[392605221,1761731525066,50000.0,0.00037187,68]
[392605222,1761731525637,500.0,0.00037187,120]
[392605223,1761731525948,197.28478336,0.00037187,60]
[392605224,1761731526379,500.0,0.00037187,120]
[392605225,1761731527146,500.0,0.00037187,120]
[392605226,1761731527850,500.0,0.00037187,120]
[392605227,1761731528560,500.0,0.00037187,120]
[392605228,1761731529185,500.0,0.00037187,120]
[392605229,1761731529562,500.0,0.00037187,120]
[392605230,1761731530137,500.0,0.00037187,120]
[392605231,1761731530293,500.0,0.00037187,120]
[392605232,1761731530632,500.0,0.00037187,120]
[392605233,1761731531428,500.0,0.00037187,120]
[392605234,1761731531461,500.0,0.00037187,120]
[392605235,1761731532141,500.0,0.00037187,120]
[392605236,1761731532194,500.0,0.00037187,120]
[392605237,1761731532866,500.0,0.00037187,120]
[392605238,1761731532909,500.0,0.00037187,120]
[392605239,1761731533652,500.0,0.00037187,120]
[392605240,1761731533683,500.0,0.00037187,120]
[392605241,1761731534378,500.0,0.00037187,120]
[392605242,1761731534410,500.0,0.00037187,120]
[392605243,1761731535137,500.0,0.00037187,120]
[392605244,1761731535180,500.0,0.00037187,120]
[392605245,1761731542266,250.0,0.00037187,120]
[392605246,1761731543065,250.0,0.00037187,120]
[392605247,1761731543774,250.0,0.00037187,120]
[392605248,1761731544580,250.0,0.00037187,120]
[392605249,1761731545157,250.0,0.00037187,120]
[392605250,1761731545895,250.0,0.00037187,120]
[392605251,1761731546628,250.0,0.00037187,120]
[392605252,1761731547365,250.0,0.00037187,120]
[392605253,1761731548016,250.0,0.00037187,120]
[392605254,1761731548053,995.4444345,0.00037187,60]
[392605255,1761731548751,250.0,0.00037187,120]
[392605256,1761731549461,250.0,0.00037187,120]
[392605257,1761731550183,250.0,0.00037187,120]
[392605262,1761731551548,50000.0,0.00037187,69]
[392605264,1761731557663,414.0,0.00037187,120]
[392605266,1761731826461,334.1214,0.00037187,120]
[392605267,1761731827193,500.0,0.00037187,120]
[392605268,1761731827924,500.0,0.00037187,120]
[392605269,1761731828665,500.0,0.00037187,120]
[392605270,1761731830454,264.45834267,0.00037187,60]
[392605271,1761731839790,180.61337468,0.00037187,120]
[392605274,1761732208478,905.01954548,0.00037186,120]
[392605275,1761732238355,372.50302479,0.00037186,120]
[392605276,1761732299988,167.61,0.00011057,2]
[392605277,1761732300190,167.61,0.00011639,2]
[392605278,1761732300396,167.61,0.00012221,2]
[392605279,1761732300604,167.61,0.00012803,2]
[392605280,1761732300811,167.61,0.00013385,2]
[392605281,1761732301014,167.61,0.00013967,2]
[392605282,1761732301218,167.61,0.00014549,2]
[392605283,1761732351231,204.56617954,0.00014549,2]
[392605284,1761732351699,151.0,0.00014549,2]
[392605285,1761732352600,191.39154758,0.00014549,2]
[392605286,1761732352626,170.47181629,0.00014549,2]
[392605287,1761732353529,151.0,0.00014549,2]
[392605288,1761732373442,50000.0,0.00037186,60]
[392605289,1761732376841,50000.0,0.00037186,61]
[392605290,1761732380221,50000.0,0.00037186,62]
[392605291,1761732383314,50000.0,0.00037186,63]
[392605303,1761732619303,10009.89103849,0.0002,3]
[392605308,1761732631825,-167.61,0.00015131,2]
[392605309,1761732631834,-167.61,0.00015713,2]
[392605310,1761732631844,-167.61,0.00016295,2]
[392605311,1761732631853,-1000.0,0.000165,2]
[392605312,1761732631862,-150.0,0.000165,2]
[392605313,1761732631872,-241.2055635,0.00016644,2]
[392605315,1761732631881,-250.0,0.00016644,2]
[392605316,1761732631890,-195.0,0.00016644,2]
[392605317,1761732631900,-216.9840124,0.00016817,2]
[392605318,1761732631909,-167.61,0.00016877,2]
[392605319,1761732631917,-892.67338722,0.00016966,2]
[392605320,1761732631927,-197.0,0.00017089,2]
[392605321,1761732631936,-1200.0,0.00017089,2]
[392605322,1761732631944,-1576.00134486,0.0001709,2]
[392605323,1761732631954,-710.19118339,0.0001709,2]
[392605324,1761732631962,-214.96811591,0.000173,2]
[392605325,1761732631971,-167.61,0.00017459,2]
[392605326,1761732631980,-167.61,0.00018041,2]
[392605327,1761732631998,-8113.45223018,0.00018314,2]
[392605328,1761732632008,-167.61,0.00018623,2]
[392605329,1761732632017,-841.75416254,0.00018756,2]
[392605330,1761732632030,-838.24583746,0.00018756,2]
[392605331,1761732632041,-176.73,0.00018988,2]
[392605332,1761732632051,-20.16703943,0.00018999,2]
[392605333,1761732632115,-829.83296057,0.00018999,2]
[392605334,1761732632124,-627.64707464,0.00018999,2]
[392605335,1761732632134,-500.0,0.00018999,2]
[392605336,1761732632149,-299.87127487,0.00019,2]
[392605337,1761732632158,-1725.94144928,0.00019,2]
[392605338,1761732632194,-366.13195705,0.00019,2]
[392605897,1761732637759,-1038.75003515,0.00019,2]
[392605899,1761732637770,-3444.860025,0.00019,2]
[392605901,1761732637781,-710.19118339,0.00019,2]
[392605916,1761732637917,-2070.66,0.00019,2]
[392605923,1761732637970,-442.9242,0.00019,2]
[392606076,1761732639956,-473.93335833,0.00017393,2]
[392606077,1761732639967,-248.87017481,0.00017393,2]
[392606078,1761732639977,-3152.35882519,0.00019,2]
[392606079,1761732640115,-4593.70237203,0.00019,2]
[392606080,1761732640274,-8731.68023376,0.00019,2]
[392606081,1761732640283,-250.0,0.00019031,2]
[392606082,1761732640292,-167.61,0.00019205,2]
[392606083,1761732640301,-167.61,0.00019787,2]
[392606084,1761732640311,-206.7,0.00019868,2]
[392606085,1761732640321,-154.7,0.00019889,2]
[392606086,1761732640331,-207.0,0.00020044,2]
[392606087,1761732640340,-156.36,0.00020068,2]
[392606088,1761732640350,-152.48,0.00020187,2]
[392606089,1761732640359,-4268.91,0.00020245,2]
[392606090,1761732640368,-167.61,0.00020369,2]
[392606091,1761732640380,-200.0,0.00020446,2]
[392606092,1761732640395,-1213.6501365,0.00020522,2]
[392606093,1761732640404,-154.7,0.00020546,2]
[392606094,1761732640413,-150.0,0.00020658,2]
[392606095,1761732640423,-150.68,0.00020658,2]
[392606096,1761732640433,-167.61,0.00020951,2]
[392606097,1761732640444,-152.0,0.00021041,2]
[392606098,1761732640629,-152.0,0.00021041,2]
[392606099,1761732640639,-154.13279678,0.00021041,2]
[392606100,1761732640649,-152.0,0.00021041,2]
[392606101,1761732640659,-152.0,0.00021041,2]
[392606102,1761732640670,-152.0,0.00021041,2]
[392606103,1761732640679,-152.0,0.00021041,2]
[392606104,1761732640689,-152.0,0.00021041,2]
[392606105,1761732640698,-152.0,0.00021041,2]
[392606106,1761732640707,-152.0,0.00021041,2]
[392606107,1761732640716,-152.0,0.00021041,2]
[392606108,1761732640727,-152.0,0.00021041,2]
[392606109,1761732640736,-152.0,0.00021041,2]
[392606110,1761732640745,-152.0,0.00021041,2]
[392606111,1761732640754,-152.0,0.00021041,2]
[392606112,1761732640763,-152.0,0.00021041,2]
[392606113,1761732640773,-152.0,0.00021041,2]
[392606114,1761732640783,-152.0,0.00021041,2]
[392606115,1761732640793,-152.0,0.00021041,2]
[392606116,1761732640802,-152.0,0.00021041,2]
[392606117,1761732640811,-287.0,0.00021041,2]
[392606118,1761732640820,-152.0,0.00021041,2]
[392606119,1761732640830,-152.0,0.00021041,2]
[392606120,1761732640840,-152.0,0.00021041,2]
[392606121,1761732640849,-152.0,0.00021041,2]
[392606122,1761732640857,-152.0,0.00021041,2]
[392606123,1761732640867,-95.97314014,0.00021041,2]
[392606133,1761732646045,-56.02685986,0.00021041,2]
[392606134,1761732646055,-152.0,0.00021041,2]
[392606135,1761732646065,-152.0,0.00021041,2]
[392606136,1761732646074,-133.55994579,0.00021041,2]
[392606139,1761732680783,152.35104335,0.00037186,120]
[392606140,1761732680853,372.6,0.00031507,120]
[392606143,1761732987570,177.0,0.00037186,60]
[392606152,1761733478126,167.2,0.00013699,2]
[392606154,1761733508054,12791.10045659,0.00015,2]
[392606155,1761733508078,15000.0,0.00015,2]
[392606156,1761733508101,15000.0,0.00015,2]
[392606157,1761733508127,15000.0,0.00015,2]
[392606158,1761733508149,15000.0,0.00015,2]
[392606159,1761733508179,15000.0,0.00015,2]
[392606160,1761733508204,15000.0,0.00015,2]
[392606161,1761733508227,15000.0,0.00015,2]
[392606162,1761733508249,15000.0,0.00015,2]
[392606163,1761733508275,15000.0,0.00015,2]
[392606164,1761733508298,15000.0,0.00015,2]
[392606165,1761733508322,15000.0,0.00015,2]
[392606166,1761733508344,15000.0,0.00015,2]
[392606167,1761733508368,15000.0,0.00015,2]
[392606168,1761733508391,15000.0,0.00015,2]
[392606169,1761733508414,15000.0,0.00015,2]
[392606170,1761733508436,15000.0,0.00015,2]
[392606171,1761733508459,15000.0,0.00015,2]
[392606172,1761733508483,15000.0,0.00015,2]
[392606173,1761733508505,15000.0,0.00015,2]
[392606174,1761733508527,15000.0,0.00015,2]
[392606175,1761733508550,15000.0,0.00015,2]
[392606176,1761733508573,15000.0,0.00015,2]
[392606177,1761733508596,15000.0,0.00015,2]
[392606178,1761733508620,15000.0,0.00015,2]
[392606179,1761733508644,15000.0,0.00015,2]
[392606180,1761733508666,15000.0,0.00015,2]
[392606181,1761733508688,15000.0,0.00015,2]
[392606182,1761733508711,15000.0,0.00015,2]
[392606183,1761733508734,15000.0,0.00015,2]
[392606184,1761733508756,11650.35905956,0.00015,2]
[392606187,1761733562501,3349.64094044,8e-05,2]
[392606188,1761733562544,1481.36332771,8e-05,2]
[392606192,1761733616942,5000.00672519,0.000162,5]
[392606227,1761733675134,13518.63667229,0.00015,2]
[392606228,1761733675158,15000.0,0.00015,2]
[392606229,1761733675186,15000.0,0.00015,2]
[392606230,1761733675213,15000.0,0.00015,2]
[392606231,1761733675237,15000.0,0.00015,2]
[392606232,1761733675262,15000.0,0.00015,2]
[392606233,1761733675294,15000.0,0.00015,2]
[392606234,1761733675316,15000.0,0.00015,2]
[392606235,1761733675338,15000.0,0.00015,2]
[392606236,1761733675363,15000.0,0.00015,2]
[392606237,1761733675387,15000.0,0.00015,2]
[392606238,1761733675411,15000.0,0.00015,2]
[392606239,1761733675435,15000.0,0.00015,2]
[392606240,1761733675458,15000.0,0.00015,2]
[392606241,1761733675482,15000.0,0.00015,2]
[392606242,1761733675507,15000.0,0.00015,2]
[392606243,1761733675532,15000.0,0.00015,2]
[392606244,1761733675556,15000.0,0.00015,2]
[392606245,1761733675581,15000.0,0.00015,2]
[392606246,1761733675609,15000.0,0.00015,2]
[392606247,1761733675636,15000.0,0.00015,2]
[392606248,1761733675659,15000.0,0.00015,2]
[392606249,1761733675685,15000.0,0.00015,2]
[392606250,1761733675709,15000.0,0.00015,2]
[392606251,1761733675734,15000.0,0.00015,2]
[392606252,1761733675760,15000.0,0.00015,2]
[392606253,1761733675785,15000.0,0.00015,2]
[392606254,1761733675812,15000.0,0.00015,2]
[392606255,1761733675836,15000.0,0.00015,2]
[392606256,1761733675860,15000.0,0.00015,2]
[392606257,1761733675884,15000.0,0.00015,2]
[392606258,1761733675909,15000.0,0.00015,2]
[392606259,1761733675935,15000.0,0.00015,2]
[392606260,1761733675957,15000.0,0.00015,2]
[392606261,1761733675981,15000.0,0.00015,2]
[392606262,1761733676007,15000.0,0.00015,2]
[392606263,1761733676034,15000.0,0.00015,2]
[392606264,1761733676058,15000.0,0.00015,2]
[392606265,1761733676084,15000.0,0.00015,2]
[392606266,1761733676108,15000.0,0.00015,2]
[392606267,1761733676134,15000.0,0.00015,2]
[392606268,1761733676159,15000.0,0.00015,2]
[392606269,1761733676183,15000.0,0.00015,2]
[392606270,1761733676211,15000.0,0.00015,2]
[392606271,1761733676238,15000.0,0.00015,2]
[392606272,1761733676265,15000.0,0.00015,2]
[392606273,1761733676290,15000.0,0.00015,2]
[392606274,1761733676314,15000.0,0.00015,2]
[392606275,1761733676341,15000.0,0.00015,2]
[392606276,1761733676366,15000.0,0.00015,2]
[392606277,1761733676390,15000.0,0.00015,2]
[392606278,1761733676414,15000.0,0.00015,2]
[392606279,1761733676440,15000.0,0.00015,2]
[392606280,1761733676463,15000.0,0.00015,2]
[392606281,1761733676490,15000.0,0.00015,2]
[392606282,1761733676516,15000.0,0.00015,2]
[392606283,1761733676543,15000.0,0.00015,2]
[392606284,1761733676569,15000.0,0.00015,2]
[392606285,1761733676593,15000.0,0.00015,2]
[392606286,1761733676617,15000.0,0.00015,2]
[392606287,1761733676641,15000.0,0.00015,2]
[392606288,1761733676668,15000.0,0.00015,2]
[392606289,1761733676691,15000.0,0.00015,2]
[392606290,1761733676728,55429.60222838,0.00015,2]
[392606294,1761733717436,-500.0,0.00014999,2]
[392606295,1761733717459,-500.0,0.00014999,2]
[392606296,1761733717485,-500.0,0.00014999,2]
[392606297,1761733717509,-500.0,0.00014999,2]
[392606298,1761733717535,-500.0,0.00014999,2]
[392606299,1761733717561,-418.68264659,0.00014999,2]
[392606300,1761733717586,-500.0,0.00014999,2]
[392606301,1761733717610,-500.0,0.00014999,2]
[392606302,1761733717634,-500.0,0.00014999,2]
[392606303,1761733717656,-500.0,0.00014999,2]
[392606304,1761733717678,-4458.28082449,0.00014999,2]
[392606305,1761733717700,-33264.03652892,0.00015,2]
[392606314,1761733832176,-500.0,0.00014999,2]
[392606315,1761733832187,-500.0,0.00014999,2]
[392606316,1761733832196,-500.0,0.00014999,2]
[392606317,1761733832207,-195.0,0.00015,2]
[392606318,1761733832216,-32193.87453084,0.00015,2]
[392606350,1761733838279,-711.60857052,0.00015,2]
[392606351,1761733838290,-3208.8801078,0.00015,2]
[392606362,1761733840142,-1400.0,0.00015,2]
[392606379,1761733846030,-333.0499957,0.00015,2]
[392606380,1761733846139,-20400.9063564,0.00015,2]
[392606381,1761733846149,-506.24944518,0.00016438,2]
[392606382,1761733846159,-195.0,0.00016499,2]
[392606383,1761733846169,-167.2,0.00020187,2]
[392606384,1761733846178,-725.269237,0.00020497,2]
[392606385,1761733846187,-548.12,0.000206,2]
[392606386,1761733846196,-176.51,0.000206,2]
[392606387,1761733846207,-1202.57,0.000206,2]
[392606388,1761733846216,-150.0,0.00020672,2]
[392606389,1761733846225,-1704.14,0.00020736,2]
[392606390,1761733846235,-725.26923701,0.00020756,2]
[392606391,1761733846244,-150.0,0.000208,2]
[392606392,1761733846254,-176.51,0.00020812,2]
[392606393,1761733846264,-1000.0,0.00021,2]
[392606394,1761733846273,-952.38,0.00021,2]
[392606395,1761733846283,-414.74,0.00021,2]
[392606396,1761733846292,-151.0,0.00021028,2]
[392606397,1761733846301,-151.0,0.00021028,2]
[392606398,1761733846311,-151.0,0.00021028,2]
[392606399,1761733846320,-270.1462402,0.00021028,2]
[392606400,1761733846330,-151.0,0.00021041,2]
[392606401,1761733846340,-1000.0,0.00021041,2]
[392606402,1761733846349,-1000.0,0.00021041,2]
[392606403,1761733846359,-1000.0,0.00021041,2]
[392606404,1761733846368,-1000.0,0.00021041,2]
[392606405,1761733846377,-1000.0,0.00021041,2]
[392606406,1761733846387,-1000.0,0.00021041,2]
[392606407,1761733846397,-1000.0,0.00021041,2]
[392606408,1761733846406,-1000.0,0.00021041,2]
[392606409,1761733846415,-1000.0,0.00021041,2]
[392606410,1761733846424,-1000.0,0.00021041,2]
[392606411,1761733846433,-1000.0,0.00021041,2]
[392606412,1761733846442,-1000.0,0.00021041,2]
[392606413,1761733846451,-1000.0,0.00021041,2]
[392606414,1761733846460,-1000.0,0.00021041,2]
[392606415,1761733846469,-1000.0,0.00021041,2]
[392606416,1761733846479,-1000.0,0.00021041,2]
[392606417,1761733846488,-540.04739227,0.00021041,2]
[392606418,1761733846497,-999.0,0.00021063,3]
[392606419,1761733846507,-548.12,0.000211,2]
[392606421,1761733846516,-414.74,0.000211,2]
[392606422,1761733846525,-1000.0,0.0002113,2]
[392606423,1761733846536,-200.0,0.00021173,2]
[392606424,1761733846545,-548.12,0.000212,2]
[392606425,1761733846554,-414.74,0.000212,2]
[392606426,1761733846563,-414.74,0.000212,2]
[392606427,1761733846572,-1011.51,0.000212,2]
[392606428,1761733846582,-154.7,0.00021203,2]
[392606429,1761733846592,-155.9,0.00021276,2]
[392606430,1761733846601,-548.12,0.000213,2]
[392606431,1761733846611,-150.0,0.000213,2]
[392606432,1761733846619,-150.0,0.000213,2]
[392606433,1761733846629,-150.0,0.000213,2]
[392606434,1761733846638,-150.0,0.000213,2]
[392606435,1761733846647,-302.0,0.00021301,2]
[392606436,1761733846656,-152.0,0.00021301,2]
[392606437,1761733846665,-282.34,0.0002135,2]
[392606438,1761733846675,-1500.0,0.00021383,2]
[392606439,1761733846684,-152.0,0.00021426,2]
[392606440,1761733846694,-201.55963034,0.00021426,2]
[392606441,1761733846703,-150.0,0.00021426,2]
[392606442,1761733846712,-150.0,0.00021426,2]
[392606443,1761733846721,-150.0,0.00021426,2]
[392606444,1761733846731,-150.0,0.00021426,2]
[392606445,1761733846740,-150.0,0.00021426,2]
[392606446,1761733846749,-150.0,0.00021426,2]
[392606447,1761733846759,-150.0,0.00021426,2]
[392606448,1761733846768,-150.0,0.00021437,2]
[392606449,1761733846778,-150.0,0.00021437,2]
[392606450,1761733846788,-150.0,0.00021437,2]
[392606451,1761733846798,-167.61,0.00021533,2]
[392606452,1761733846807,-150.0,0.00021563,2]
[392606453,1761733846818,-200.0,0.00021574,2]
[392606454,1761733846827,-200.0,0.00021574,2]
[392606455,1761733846836,-200.0,0.00021574,2]
[392606456,1761733846846,-658.07231818,0.00021581,2]
[392606457,1761733846855,-454.07,0.00021629,2]
[392606458,1761733846865,-200.0,0.000217,2]
[392606459,1761733846874,-150.0,0.000217,2]
[392606460,1761733846884,-150.0,0.000217,2]
[392606461,1761733846894,-150.0,0.00021837,2]
[392606462,1761733846905,-150.0,0.00021837,2]
[392606463,1761733846914,-154.7,0.00021859,2]
[392606464,1761733846924,-174.42512652,0.00021885,2]
[392606465,1761733846933,-351.57022366,0.00021885,2]
[392606466,1761733846943,-151.0,0.00021886,7]
[392606467,1761733846952,-151.0,0.00021886,7]
[392606468,1761733846961,-151.0,0.00021886,7]
[392606469,1761733846970,-23171.32552249,0.00021886,2]
[392606470,1761733846980,-1059.87,0.00021918,2]
[392606471,1761733846989,-150.0,0.00021974,2]
[392606472,1761733846999,-1000.0,0.00022,2]
[392606473,1761733847008,-571.61570223,0.00022011,2]
[392606474,1761733847017,-151.0,0.00022015,7]
[392606475,1761733847026,-204.571881,0.00022015,7]
[392606476,1761733847036,-286.572705,0.00022015,7]
[392606477,1761733847045,-155.571272,0.00022015,7]
[392606478,1761733847054,-160.596284,0.00022015,7]
[392606479,1761733847063,-151.0,0.00022015,7]
[392606480,1761733847073,-151.0,0.00022015,7]
[392606481,1761733847082,-151.0,0.00022015,7]
[392606482,1761733847091,-151.0,0.00022015,7]
[392606483,1761733847101,-151.0,0.00022015,7]
[392606484,1761733847110,-151.0,0.00022015,7]
[392606485,1761733847120,-27889.50984902,0.00022015,2]
[392606491,1761733911167,3467.0,0.00037187,60]
[392606494,1761733925326,591.74589922,0.00037187,60]
[392606495,1761733981323,220.28,0.00025206,120]
[392606496,1761733981724,220.28,0.00028007,120]
[392606497,1761733981931,220.28,0.00030807,120]
[392606506,1761734315838,1201.83,0.00031506,120]
[392606510,1761734544260,300.18835354,0.00037169,60]
[392606513,1761734682250,186.72,0.0002,3]
[392606564,1761735032347,-182.51821489,0.0001809,2]
[392606565,1761735032356,-1613.0,0.000197,2]
[392606566,1761735032366,-1015.0,0.000209,2]
[392606567,1761735032376,-1891.53,0.00020963,2]
[392606568,1761735032386,-200.0,0.0002102,2]
[392606569,1761735032395,-1200.0,0.00021246,2]
[392606570,1761735032404,-300.0,0.00021247,2]
[392606571,1761735032414,-500.0,0.00021248,2]
[392606572,1761735032423,-280.23362208,0.00021248,2]
[392606573,1761735032432,-500.0,0.00021248,2]
[392606574,1761735032445,-500.0,0.00021248,2]
[392606575,1761735032454,-500.0,0.00021248,2]
[392606576,1761735032464,-500.0,0.00021248,2]
[392606577,1761735032478,-500.0,0.00021248,2]
[392606578,1761735032489,-23995.67,0.00021249,2]
[392606579,1761735032499,-1040.54,0.00021271,2]
[392606580,1761735032508,-166.66,0.00021381,2]
[392606581,1761735032518,-846.35216752,0.00021499,2]
[392606582,1761735032527,-216.9840128,0.00021689,2]
[392606583,1761735032537,-1928.79113265,0.000219,2]
[392606584,1761735032547,-363.0428991,0.00021909,2]
[392606585,1761735032558,-58900.1539721,0.0002191,2]
[392606586,1761735032567,-156.2932747,0.0002191,2]
[392606587,1761735032577,-64473.65362612,0.0002191,2]
[392606627,1761735033201,-22272.48284368,0.0002191,2]
[392606628,1761735033242,-398.32500816,0.0002191,2]
[392606629,1761735033253,-6878.9620492,0.0002191,2]
[392606630,1761735033265,-453.14,0.0002191,2]
[392606635,1761735038166,-3914.83688934,0.0002191,2]
[392606636,1761735038177,-10819.49098436,0.0002191,2]
[392606637,1761735038189,-442.94325124,0.0002191,2]
[392606638,1761735038198,-154.064451,0.0002191,7]
[392606639,1761735038208,-154.835297,0.0002191,7]
[392606640,1761735038217,-153.605907,0.0002191,7]
[392606641,1761735038226,-151.0,0.0002191,7]
[392606642,1761735038238,-151.0,0.0002191,7]
[392606643,1761735038247,-1160.72884732,0.00021918,2]
[392606644,1761735038259,-1379.41608565,0.00021918,2]
[392606645,1761735038365,-2459.85506703,0.00021918,2]
[392606646,1761735038569,-151.0,0.00021918,7]
[392606647,1761735038579,-151.0,0.00021918,7]
[392606648,1761735038589,-6989.64253419,0.0002194,2]
[392606649,1761735038598,-166.66,0.00021944,30]
[392606650,1761735038608,-151.0,0.00022002,2]
[392606651,1761735038617,-151.0,0.00022002,2]
[392606652,1761735038627,-151.0,0.00022002,2]
[392606653,1761735038636,-151.0,0.00022002,2]
[392606654,1761735038646,-151.0,0.00022002,2]
[392606655,1761735038656,-151.0,0.00022002,2]
[392606656,1761735038667,-183.3423837,0.00022002,2]
[392606657,1761735038676,-151.0,0.00022015,2]
[392606658,1761735038692,-500.0,0.00022015,2]
[392606659,1761735038701,-151.0,0.00022015,7]
[392606660,1761735038711,-178.402768,0.00022015,7]
[392606661,1761735038721,-1006.72471,0.00022015,2]
[392606662,1761735038731,-77750.02015098,0.00022015,2]
[392606663,1761735038740,-181.94,0.00022115,2]
[392606664,1761735038750,-167.61,0.00022115,2]
[392606665,1761735038760,-282.34,0.0002215,2]
[392606666,1761735038770,-657.0,0.00022212,2]
[392606667,1761735038779,-1391.01866765,0.00022267,2]
[392606668,1761735038789,-233.59568846,0.00022304,2]
[392606669,1761735038799,-199.92417895,0.00022404,2]
[392606670,1761735038809,-22060.94214137,0.00022404,2]
[392606671,1761735038819,-596.09,0.00022404,2]
[392606672,1761735038829,-151.0,0.00022404,7]
[392606673,1761735038838,-220.28,0.00022405,2]
[392606674,1761735038847,-166.66,0.00022507,30]
[392606675,1761735038857,-154.7,0.00022516,2]